[Event "Chpt Reg Jeunes Occitanie 2026 - Espalion"]
[Site "Espalion, France"]
[Round "8.16"]
[ECO "?"]
[Annotator "?"]
[TimeControl "1h30 + 30sec/cp"]

1. e4 {[%clk 1:30:57][%emt 0:00:03]} 1... e6 {[%clk 1:30:52][%emt 0:00:08]} 2.
d4 {[%clk 1:31:22][%emt 0:00:06]} 2... d5 {[%clk 1:31:18][%emt 0:00:04]} 3.
exd5 {[%clk 1:31:47][%emt 0:00:06]} 3... exd5 {[%clk 1:31:42][%emt 0:00:05]}
4. Nf3 {[%clk 1:32:01][%emt 0:00:16]} 4... Nf6 {[%clk 1:32:07][%emt 0:00:05]}
5. Bd3 {[%clk 1:32:24][%emt 0:00:08]} 5... c5 {[%clk 1:32:32][%emt 0:00:05]}
6. c3 {[%clk 1:32:27][%emt 0:00:27]} 6... c4 {[%clk 1:32:58][%emt 0:00:03]} 7.
Bc2 {[%clk 1:32:34][%emt 0:00:24]} 7... Bd6 {[%clk 1:33:22][%emt 0:00:06]} 8.
O-O {[%clk 1:32:20][%emt 0:00:44]} 8... O-O {[%clk 1:33:46][%emt 0:00:06]} 9.
Re1 {[%clk 1:31:13][%emt 0:01:36]} 9... h6 {[%clk 1:30:13][%emt 0:04:02]} 10.
h3 {[%clk 1:30:37][%emt 0:01:07]} 10... Nc6 {[%clk 1:29:55][%emt 0:00:48]} 11.
Be3 {[%clk 1:26:36][%emt 0:04:32]} 11... Rb8 {[%clk 1:24:09][%emt 0:06:16]}
12. Nbd2 {[%clk 1:23:40][%emt 0:03:25]} 12... Re8 {[%clk 1:23:23][%emt
0:01:15]} 13. Nf1 {[%clk 1:23:04][%emt 0:01:07]} 13... Qc7 {[%clk
1:23:19][%emt 0:00:33]} 14. Qd2 {[%clk 1:21:51][%emt 0:01:44]} 14... Ne4
{[%clk 1:10:39][%emt 0:13:10]} 15. Bxe4 {[%clk 1:20:38][%emt 0:01:42]} 15...
Rxe4 {[%clk 1:06:26][%emt 0:04:44]} 16. Re2 {[%emt 0:18:46]} 16... Ne7 {[%clk
0:56:26][%emt 0:00:01]} 17. Rae1 {[%clk 1:12:03][%emt 0:01:18]} 17... Nf5
{[%clk 0:55:37][%emt 0:01:19]} 18. g4 {[%clk 1:11:13][%emt 0:01:20]} 18...
Nxe3 {[%clk 0:55:44][%emt 0:00:21]} 19. Nxe3 {[%clk 1:10:26][%emt 0:01:19]}
19... Qc6 {[%clk 0:52:00][%emt 0:04:15]} 20. Qc2 {[%clk 1:10:24][%emt 0:00:32]}
 20... Bd7 {[%clk 0:49:50][%emt 0:02:39]} 21. Nh4 {[%clk 1:06:57][%emt
0:03:56]} 21... g6 {[%clk 0:42:25][%emt 0:07:56]} 22. b3 {[%clk 1:00:32][%emt
0:06:55]} 22... b5 {[%clk 0:42:12][%emt 0:00:43]} 1/2-1/2

[White "ROGIER, Shayan"]
[Black "POUNCHOU-GUILHAMOT, Martin"]
[WhiteElo "1585"]
[BlackElo "1645"]
[Result "0-1"]
[Date "2026.03.07"]

[Event "Chpt Reg Jeunes Occitanie 2026 - Espalion"]
[Site "Espalion, France"]
[Round "8.17"]
[ECO "?"]
[Annotator "?"]
[TimeControl "1h30 + 30sec/cp"]

1. d4 {[%clk 1:30:55][%emt 0:00:04]} 1... d5 {[%clk 1:30:55][%emt 0:00:05]} 2.
c4 {[%clk 1:31:04][%emt 0:00:21]} 2... e6 {[%clk 1:31:19][%emt 0:00:07]} 3.
Nc3 {[%clk 1:31:13][%emt 0:00:20]} 3... Nf6 {[%clk 1:31:34][%emt 0:00:16]} 4.
cxd5 {[%clk 1:31:24][%emt 0:00:18]} 4... exd5 {[%clk 1:31:36][%emt 0:00:29]}
5. Bg5 {[%clk 1:31:15][%emt 0:00:39]} 5... Be7 {[%clk 1:31:19][%emt 0:00:47]}
6. Qc2 {[%clk 1:30:10][%emt 0:01:34]} 6... c6 {[%clk 1:29:34][%emt 0:02:16]}
7. e3 {[%clk 1:28:59][%emt 0:01:39]} 7... h6 {[%clk 1:27:47][%emt 0:02:18]} 8.
Bf4 {[%clk 1:22:40][%emt 0:06:49]} 8... Nbd7 {[%clk 1:26:10][%emt 0:02:08]} 9.
Bd3 {[%clk 1:20:33][%emt 0:02:36]} 9... O-O {[%clk 1:19:47][%emt 0:06:54]} 10.
Nge2 {[%clk 1:13:48][%emt 0:07:15]} 10... b5 {[%clk 1:16:05][%emt 0:04:13]}
11. a3 {[%clk 1:10:10][%emt 0:04:07]} 11... Bb7 {[%clk 1:12:54][%emt 0:03:42]}
12. O-O {[%clk 1:09:08][%emt 0:01:31]} 12... Nb6 {[%clk 1:11:48][%emt 0:01:36]}
 13. b3 {[%clk 1:03:59][%emt 0:05:38]} 13... a5 {[%clk 1:11:18][%emt 0:01:02]}
14. a4 {[%clk 0:59:03][%emt 0:05:25]} 14... b4 {[%clk 1:08:49][%emt 0:02:59]}
15. Nb1 {[%clk 0:57:16][%emt 0:02:17]} 15... Rc8 {[%clk 1:01:50][%emt 0:07:29]}
 16. Nd2 {[%clk 0:55:30][%emt 0:02:16]} 16... c5 {[%clk 0:53:28][%emt 0:08:53]}
 17. dxc5 {[%clk 0:49:39][%emt 0:06:21]} 17... Rxc5 {[%clk 0:51:14][%emt
0:02:44]} 18. Qb2 {[%clk 0:46:39][%emt 0:03:28]} 18... Qa8 {[%clk
0:47:43][%emt 0:04:01]} 19. Be5 {[%clk 0:42:30][%emt 0:04:40]} 19... Nbd7
{[%clk 0:34:22][%emt 0:13:51]} 20. Bd4 {[%clk 0:39:19][%emt 0:03:42]} 20...
Rc7 {[%clk 0:33:19][%emt 0:01:33]} 21. Nf3 {[%clk 0:34:46][%emt 0:05:03]}
21... Ba6 {[%clk 0:29:55][%emt 0:03:54]} 22. Bxa6 {[%clk 0:32:06][%emt
0:03:09]} 22... Qxa6 {[%clk 0:29:59][%emt 0:00:26]} 23. Ng3 {[%clk
0:24:38][%emt 0:07:58]} 23... Rfc8 {[%clk 0:27:09][%emt 0:03:20]} 24. Rac1
{[%clk 0:22:25][%emt 0:02:42]} 24... Qd3 {[%clk 0:25:33][%emt 0:02:07]} 25.
Rcd1 {[%clk 0:16:23][%emt 0:06:32]} 25... Qg6 {[%clk 0:24:04][%emt 0:02:00]}
26. Nh4 {[%clk 0:13:53][%emt 0:02:58]} 26... Qc2 {[%clk 0:21:59][%emt 0:02:35]}
 27. Ngf5 {[%clk 0:08:25][%emt 0:06:00]} 27... Bf8 {[%clk 0:19:23][%emt
0:03:06]} 28. Nf3 {[%clk 0:05:26][%emt 0:03:28]} 28... Qxf5 {[%clk
0:17:57][%emt 0:01:56]} 29. Rc1 {[%clk 0:04:54][%emt 0:01:02]} 29... Rc2
{[%clk 0:16:13][%emt 0:02:14]} 30. Rxc2 {[%clk 0:04:27][%emt 0:00:57]} 30...
Rxc2 {[%clk 0:16:10][%emt 0:00:33]} 31. Qb1 {[%clk 0:04:43][%emt 0:00:14]}
31... Qe4 {[%clk 0:15:00][%emt 0:01:40]} 32. Ne1 {[%clk 0:03:05][%emt 0:02:08]}
 32... Rc8 {[%clk 0:15:11][%emt 0:00:19]} 33. Qd1 {[%clk 0:02:37][%emt
0:00:59]} 33... Qe6 {[%clk 0:14:23][%emt 0:01:17]} 34. Qe2 {[%clk
0:02:32][%emt 0:00:34]} 34... Qc6 {[%clk 0:13:22][%emt 0:01:33]} 35. Nd3
{[%clk 0:02:09][%emt 0:00:52]} 35... Ne4 {[%clk 0:13:01][%emt 0:00:51]} 36.
Rc1 {[%clk 0:01:52][%emt 0:00:48]} 36... Qxc1+ {[%emt 0:00:24]} 37. Qf1 {[%clk
0:01:52][%emt 0:00:06]} 0-1

[White "BIBIK, Artur"]
[Black "BAILLA, Yasmine"]
[WhiteElo "1540"]
[BlackElo "1618"]
[Result "1-0"]
[Date "2026.03.07"]

[Event "Chpt Reg Jeunes Occitanie 2026 - Espalion"]
[Site "Espalion, France"]
[Round "8.18"]
[ECO "?"]
[Annotator "?"]
[TimeControl "1h30 + 30sec/cp"]

1. e4 {[%clk 1:30:57][%emt 0:00:03]} 1... e5 {[%clk 1:30:57][%emt 0:00:03]} 2.
Nf3 {[%clk 1:31:15][%emt 0:00:12]} 2... Nc6 {[%clk 1:31:23][%emt 0:00:04]} 3.
d4 {[%clk 1:31:31][%emt 0:00:15]} 3... exd4 {[%clk 1:31:38][%emt 0:00:14]} 4.
Nxd4 {[%clk 1:31:51][%emt 0:00:10]} 4... Bc5 {[%clk 1:31:48][%emt 0:00:20]} 5.
Be3 {[%clk 1:32:12][%emt 0:00:09]} 5... Qf6 {[%clk 1:31:53][%emt 0:00:24]} 6.
c3 {[%clk 1:32:35][%emt 0:00:08]} 6... Nge7 {[%clk 1:31:54][%emt 0:00:30]} 7.
Bc4 {[%clk 1:32:48][%emt 0:00:16]} 7... O-O {[%clk 1:32:02][%emt 0:00:22]} 8.
O-O {[%clk 1:33:05][%emt 0:00:13]} 8... d6 {[%clk 1:30:44][%emt 0:01:48]} 9.
Nxc6 {[%clk 1:33:01][%emt 0:00:34]} 9... Nxc6 {[%clk 1:30:58][%emt 0:00:16]}
10. Bxc5 {[%clk 1:33:17][%emt 0:00:14]} 10... dxc5 {[%clk 1:31:21][%emt
0:00:07]} 11. Bb5 {[%clk 1:32:05][%emt 0:01:42]} 11... a6 {[%clk 1:31:16][%emt
0:00:36]} 12. Be2 {[%clk 1:31:46][%emt 0:00:46]} 12... Qg6 {[%clk
1:29:36][%emt 0:02:09]} 13. Nd2 {[%clk 1:29:29][%emt 0:02:49]} 13... Rd8
{[%clk 1:21:36][%emt 0:08:30]} 14. f4 {[%clk 1:27:01][%emt 0:02:59]} 14... b5
{[%clk 1:18:22][%emt 0:03:44]} 15. Bf3 {[%clk 1:26:17][%emt 0:01:14]} 15...
Bb7 {[%clk 1:12:26][%emt 0:06:26]} 16. f5 {[%clk 1:25:28][%emt 0:01:20]} 16...
Qh6 {[%clk 1:11:15][%emt 0:01:39]} 17. Rf2 {[%clk 1:23:35][%emt 0:02:25]}
17... Ne5 {[%clk 1:10:07][%emt 0:01:37]} 18. Qc2 {[%clk 1:22:22][%emt 0:01:43]}
 18... Qe3 {[%emt 0:13:19]} 19. Nf1 {[%clk 1:18:28]} 19... Nxf3+ {[%clk
0:59:30][%emt 0:02:41]} 20. gxf3 {[%clk 1:18:16][%emt 0:00:42]} 20... Qg5+
{[%clk 0:58:15][%emt 0:01:44]} 21. Rg2 {[%clk 1:18:13][%emt 0:00:34]} 21...
Qf4 {[%clk 0:57:57][%emt 0:00:46]} 22. Rg3 {[%clk 1:11:16][%emt 0:07:29]}
22... c4 {[%clk 0:48:00][%emt 0:10:26]} 23. Qc1 {[%emt 0:04:30]} 23... Qe5
{[%clk 0:45:17][%emt 0:01:26]} 24. Ne3 {[%clk 1:05:17][%emt 0:04:17]} 24...
Rd3 {[%clk 0:42:13][%emt 0:03:34]} 25. Ng4 {[%clk 1:04:20][%emt 0:01:27]}
25... Qc5+ {[%clk 0:42:02][%emt 0:00:41]} 26. Kh1 {[%clk 1:03:26][%emt
0:01:19]} 26... Kh8 {[%clk 0:36:25][%emt 0:06:12]} 27. Qg5 {[%clk
0:55:35][%emt 0:08:21]} 27... Qf8 {[%clk 0:27:41][%emt 0:09:13]} 28. Rag1
{[%clk 0:51:51][%emt 0:04:14]} 28... f6 {[%clk 0:25:59][%emt 0:02:11]} 29. Qh5
{[%clk 0:50:31][%emt 0:01:52]} 29... Qe8 {[%clk 0:11:13][%emt 0:15:15]} 30.
Qxh7+ {[%clk 0:45:48][%emt 0:05:13]} 30... Kxh7 {[%clk 0:10:57][%emt 0:00:46]}
31. Nxf6+ {[%clk 0:46:08][%emt 0:00:10]} 31... Kh8 {[%clk 0:07:18][%emt
0:04:09]} 32. Rh3+ {[%clk 0:46:03][%emt 0:00:35]} 32... Qh5 {[%clk
0:06:45][%emt 0:01:03]} 33. Rxh5# {[%clk 0:46:25][%emt 0:00:08]} 1-0

[White "TOURETTE, Maxence"]
[Black "LEMOINE, Luka"]
[WhiteElo "1709"]
[BlackElo "1691"]
[Result "1-0"]
[Date "2026.03.07"]

[Event "Chpt Reg Jeunes Occitanie 2026 - Espalion"]
[Site "Espalion, France"]
[Round "8.19"]
[ECO "?"]
[Annotator "?"]
[TimeControl "1h30 + 30sec/cp"]

1. d4 {[%clk 1:30:51][%emt 0:00:09]} 1... d5 {[%clk 1:29:24][%emt 0:01:36]} 2.
Nc3 {[%clk 1:31:12][%emt 0:00:09]} 2... Nf6 {[%clk 1:29:36][%emt 0:00:19]} 3.
Bf4 {[%clk 1:31:35][%emt 0:00:07]} 3... a6 {[%clk 1:28:40][%emt 0:01:24]} 4.
e3 {[%clk 1:31:47][%emt 0:00:19]} 4... e6 {[%clk 1:28:20][%emt 0:00:49]} 5.
Nf3 {[%clk 1:31:57][%emt 0:00:21]} 5... c5 {[%clk 1:28:00][%emt 0:00:50]} 6.
dxc5 {[%clk 1:31:14][%emt 0:01:13]} 6... Bxc5 {[%clk 1:27:57][%emt 0:00:32]}
7. Bd3 {[%clk 1:31:26][%emt 0:00:18]} 7... Nc6 {[%clk 1:22:56][%emt 0:05:31]}
8. O-O {[%clk 1:31:28][%emt 0:00:27]} 8... O-O {[%clk 1:20:17][%emt 0:03:10]}
9. e4 {[%clk 1:29:59][%emt 0:02:00]} 9... b5 {[%clk 1:18:19][%emt 0:02:27]}
10. e5 {[%clk 1:29:48][%emt 0:00:42]} 10... Nd7 {[%clk 1:18:22][%emt 0:00:26]}
11. Bxh7+ {[%clk 0:48:29][%emt 0:41:49]} 11... Kxh7 {[%clk 1:13:43][%emt
0:05:08]} 12. Ng5+ {[%clk 0:47:54][%emt 0:01:05]} 12... Kg6 {[%clk
1:12:58][%emt 0:01:15]} 13. Qd3+ {[%clk 0:47:28][%emt 0:00:57]} 13... f5
{[%clk 1:13:14][%emt 0:00:14]} 14. Qg3 {[%clk 0:46:46][%emt 0:01:11]} 14...
Qe7 {[%clk 1:10:03][%emt 0:03:41]} 15. h4 {[%clk 0:45:07][%emt 0:02:10]} 15...
Rh8 {[%clk 1:08:24][%emt 0:02:09]} 16. Nxe6+ {[%clk 0:36:40][%emt 0:08:57]}
16... Kh7 {[%clk 1:07:29][%emt 0:01:25]} 17. Ng5+ {[%clk 0:35:46][%emt
0:01:25]} 17... Kg8 {[%clk 1:07:15][%emt 0:00:43]} 18. Nxd5 {[%clk
0:35:53][%emt 0:00:23]} 18... Qe8 {[%clk 1:05:48][%emt 0:01:57]} 19. Nc7
{[%clk 0:35:14][%emt 0:01:09]} 19... Qe7 {[%clk 1:06:06][%emt 0:00:12]} 20.
Qb3+ {[%clk 0:33:01][%emt 0:02:43]} 20... Kf8 {[%clk 1:06:09][%emt 0:00:27]}
21. Nge6+ {[%clk 0:29:23][%emt 0:04:09]} 21... Kg8 {[%clk 1:05:18][%emt
0:01:20]} 22. Nxc5+ {[%clk 0:28:54][%emt 0:00:59]} 1-0

[White "AMRANE, Samy-Islam"]
[Black "ROUANET, Henri"]
[WhiteElo "1809"]
[BlackElo "1569"]
[Result "1-0"]
[Date "2026.03.07"]

[Event "Chpt Reg Jeunes Occitanie 2026 - Espalion"]
[Site "Espalion, France"]
[Round "8.20"]
[ECO "?"]
[Annotator "?"]
[TimeControl "1h30 + 30sec/cp"]

1. e4 {[%clk 1:30:27][%emt 0:00:03]} 1... Nc6 {[%clk 1:30:48][%emt 0:00:12]}
2. d4 {[%clk 1:30:44][%emt 0:00:13]} 2... e5 {[%clk 1:31:09][%emt 0:00:09]} 3.
d5 {[%clk 1:30:56][%emt 0:00:18]} 3... Nce7 {[%clk 1:31:30][%emt 0:00:08]} 4.
Nf3 {[%clk 1:31:08]} 4... Ng6 {[%clk 1:31:52][%emt 0:00:26]} 5. c4 {[%clk
1:30:50]} 5... Nf6 {[%clk 1:32:09][%emt 0:01:01]} 6. Nc3 {[%clk 1:31:10]} 6...
Bb4 {[%clk 1:32:09]} 7. Qc2 {[%clk 1:31:10]} 7... d6 {[%clk 1:32:09]} 8. Be2
{[%clk 1:31:10]} 8... O-O {[%clk 1:32:09]} 9. O-O {[%clk 1:31:10]} 9... Nh5
{[%clk 1:32:09]} 10. Nxe5 {[%clk 1:31:10]} 10... Nxe5 {[%clk 1:32:09]} 11.
Bxh5 {[%clk 1:31:10]} 11... g6 {[%clk 1:32:09]} 12. Be2 {[%clk 1:31:10]} 12...
f5 {[%clk 1:32:09]} 13. Bf4 {[%clk 1:31:10]} 13... Nf7 {[%clk 1:32:09]} 14.
exf5 {[%clk 1:31:10]} 14... Bxf5 {[%clk 1:32:09]} 15. a4 {[%clk 1:31:10]}
15... a5 {[%clk 1:32:09]} 16. Qb3 {[%clk 1:31:10]} 16... Qf6 {[%clk 1:32:09]}
17. Be3 {[%clk 1:31:10]} 17... Ne5 {[%clk 1:32:09]} 18. Qd1 {[%clk 1:31:10]}
18... Qh4 {[%clk 1:32:09]} 19. Qd4 {[%clk 1:31:10]} 19... Qf6 {[%clk 1:32:09]}
20. f4 {[%clk 1:31:10]} 20... Nd7 {[%clk 1:32:09]} 21. Qxf6 {[%clk 1:31:10]}
21... Nxf6 {[%clk 1:32:09]} 22. Bd4 {[%clk 1:31:10]} 22... Rae8 {[%clk
1:32:09]} 23. Rfe1 {[%clk 1:31:10]} 23... Ne4 {[%clk 1:32:09]} 24. Rad1 {[%clk
1:31:10]} 24... Re7 {[%clk 1:32:09]} 25. Bf1 {[%clk 1:31:10]} 25... Rfe8
{[%clk 1:32:09]} 26. Nxe4 {[%clk 1:31:10]} 26... Bxe4 {[%clk 1:32:09]} 27. Bd3
{[%clk 1:31:10]} 27... Bxd3 {[%clk 1:32:09]} 28. Rxe7 {[%clk 1:31:10]} 28...
Rxe7 {[%clk 1:32:09]} 29. Rxd3 {[%clk 1:31:10]} 29... Rf7 {[%clk 1:32:09]} 30.
g3 {[%clk 1:31:10]} 30... Kf8 {[%clk 1:32:09]} 31. Re3 {[%clk 1:31:10]} 31...
Rf5 {[%clk 1:32:09]} 32. Kg2 {[%clk 1:31:10]} 32... Kf7 {[%clk 1:32:09]} 33.
Kf3 {[%clk 1:31:10]} 33... Kf8 {[%clk 1:32:09]} 34. Re6 {[%clk 1:31:10]} 34...
Rf7 {[%clk 1:32:09]} 35. Rf6 {[%clk 1:31:10]} 35... Rxf6 {[%clk 1:32:09]} 36.
Bxf6 {[%clk 1:31:10]} 1-0

[White "BENYETTOU, Louis"]
[Black "BIBIK, Artur"]
[WhiteElo "1841"]
[BlackElo "1540"]
[Result "1-0"]
[Date "2026.03.08"]

[Event "Chpt Reg Jeunes Occitanie 2026 - Espalion"]
[Site "Espalion, France"]
[Round "9.16"]
[ECO "?"]
[Annotator "?"]
[TimeControl "1h30 + 30sec/cp"]

1. e4 {[%clk 1:30:57][%emt 0:00:02]} 1... c5 {[%clk 1:30:54][%emt 0:00:07]} 2.
c3 {[%clk 1:31:17][%emt 0:00:10]} 2... Nf6 {[%clk 1:30:22][%emt 0:01:02]} 3.
e5 {[%clk 1:31:43][%emt 0:00:04]} 3... Nd5 {[%clk 1:30:43][%emt 0:00:09]} 4.
Nf3 {[%clk 1:32:08][%emt 0:00:06]} 4... Nc6 {[%clk 1:31:04][%emt 0:00:08]} 5.
Bc4 {[%clk 1:32:29][%emt 0:00:07]} 5... Nb6 {[%clk 1:31:29][%emt 0:00:06]} 6.
Bb3 {[%clk 1:32:48][%emt 0:00:12]} 6... c4 {[%clk 1:31:53][%emt 0:00:06]} 7.
Bc2 {[%clk 1:33:13][%emt 0:00:04]} 7... Qc7 {[%clk 1:32:11][%emt 0:00:13]} 8.
O-O {[%clk 1:33:23][%emt 0:00:19]} 8... Nxe5 {[%clk 1:32:09][%emt 0:00:32]} 9.
Nxe5 {[%clk 1:33:48][%emt 0:00:04]} 9... Qxe5 {[%clk 1:32:32][%emt 0:00:08]}
10. Re1 {[%clk 1:34:01][%emt 0:00:17]} 10... Qc7 {[%emt 0:02:21]} 11. a4
{[%clk 1:32:50]} 11... g6 {[%clk 1:31:52][%emt 0:01:01]} 12. a5 {[%clk
1:29:05][%emt 0:04:15]} 12... Nd5 {[%clk 1:32:09][%emt 0:00:13]} 13. Qf3
{[%clk 1:28:23][%emt 0:01:09]} 13... Nf6 {[%clk 1:32:02][%emt 0:00:40]} 14.
Qxf6 {[%clk 1:27:46][%emt 0:01:06]} 14... Rg8 {[%clk 1:31:20][%emt 0:01:13]}
15. d4 {[%clk 1:24:16][%emt 0:04:00]} 15... cxd3 {[%clk 1:31:00][%emt 0:00:50]}
 16. Bxd3 {[%clk 1:24:16][%emt 0:00:30]} 16... Kd8 {[%clk 1:30:23][%emt
0:01:07]} 17. Qxf7 {[%clk 1:24:17][%emt 0:00:28]} 17... Rh8 {[%clk
1:29:48][%emt 0:01:04]} 18. Be3 {[%clk 1:22:56][%emt 0:01:53]} 18... d6 {[%clk
1:27:47][%emt 0:02:32]} 19. Bd4 {[%clk 1:22:16][%emt 0:01:10]} 19... e5 {[%clk
1:27:28][%emt 0:00:49]} 20. Qf6+ {[%clk 1:21:59][%emt 0:00:45]} 1-0

[White "POUNCHOU-GUILHAMOT, Martin"]
[Black "TOURETTE, Maxence"]
[WhiteElo "1645"]
[BlackElo "1709"]
[Result "1/2-1/2"]
[Date "2026.03.08"]

[Event "Chpt Reg Jeunes Occitanie 2026 - Espalion"]
[Site "Espalion, France"]
[Round "9.17"]
[ECO "?"]
[Annotator "?"]
[TimeControl "1h30 + 30sec/cp"]

1. e4 {[%clk 1:30:59]} 1... Nc6 {[%clk 1:30:53][%emt 0:00:07]} 2. d4 {[%clk
1:31:16][%emt 0:00:12]} 2... d5 {[%clk 1:30:50][%emt 0:00:34]} 3. e5 {[%clk
1:31:01][%emt 0:00:45]} 3... f6 {[%clk 1:30:20][%emt 0:01:01]} 4. exf6 {[%clk
1:26:24][%emt 0:05:06]} 4... Nxf6 {[%clk 1:28:54][%emt 0:01:56]} 5. c3 {[%clk
1:24:56][%emt 0:01:58]} 5... e5 {[%clk 1:24:57][%emt 0:04:27]} 6. dxe5 {[%clk
1:19:14][%emt 0:06:12]} 6... Nxe5 {[%clk 1:23:02][%emt 0:02:25]} 7. h3 {[%clk
1:18:46][%emt 0:00:58]} 7... Bc5 {[%clk 1:20:43][%emt 0:02:50]} 8. Bf4 {[%clk
1:13:30][%emt 0:05:44]} 8... Ng6 {[%clk 1:19:41][%emt 0:01:32]} 9. Qe2+ {[%clk
1:03:35][%emt 0:10:25]} 9... Kf7 {[%clk 1:19:05][%emt 0:01:08]} 10. Be3 {[%clk
1:02:50][%emt 0:01:13]} 10... Bxe3 {[%clk 1:16:58][%emt 0:02:38]} 11. fxe3
{[%clk 1:03:14][%emt 0:00:06]} 11... Ne4 {[%clk 1:17:12][%emt 0:00:15]} 12.
Qf3+ {[%clk 1:00:30][%emt 0:03:13]} 12... Ke8 {[%clk 1:15:13][%emt 0:02:30]}
13. g3 {[%clk 0:55:48][%emt 0:05:12]} 13... Rf8 {[%clk 1:13:46][%emt 0:01:57]}
14. Qg2 {[%clk 0:55:55][%emt 0:00:22]} 14... Qg5 {[%clk 1:11:37][%emt 0:02:40]}
 15. Nd2 {[%clk 0:51:54][%emt 0:04:31]} 15... Qxe3+ {[%clk 1:08:19][%emt
0:03:47]} 16. Qe2 {[%clk 0:50:12][%emt 0:02:13]} 16... Qxg3+ {[%clk
1:07:33][%emt 0:01:16]} 17. Kd1 {[%clk 0:50:35][%emt 0:00:06]} 17... Nf4
{[%clk 1:05:57][%emt 0:02:07]} 18. Qb5+ {[%clk 0:48:09][%emt 0:02:56]} 18...
c6 {[%clk 1:06:01][%emt 0:00:27]} 19. Nxe4 {[%clk 0:48:20][%emt 0:00:18]}
19... Qg6 {[%clk 1:02:30][%emt 0:04:01]} 20. Qa4 {[%clk 0:47:30][%emt 0:01:20]}
 20... dxe4 {[%clk 1:00:58][%emt 0:02:01]} 21. Ne2 {[%clk 0:46:17][%emt
0:01:43]} 21... Nxe2 {[%clk 0:57:07][%emt 0:04:22]} 22. Bxe2 {[%clk
0:46:29][%emt 0:00:17]} 22... Rf2 {[%clk 0:56:01][%emt 0:01:37]} 23. Qd4
{[%clk 0:44:41][%emt 0:02:18]} 23... Rf5 {[%clk 0:50:55][%emt 0:05:36]} 24.
Qxe4+ {[%clk 0:43:43][%emt 0:01:26]} 24... Qe6 {[%clk 0:50:47][%emt 0:00:39]}
25. Qxe6+ {[%clk 0:36:11][%emt 0:08:03]} 25... Bxe6 {[%clk 0:50:30][%emt
0:00:47]} 26. Bg4 {[%clk 0:34:42][%emt 0:01:58]} 26... Rd5+ {[%clk
0:49:44][%emt 0:01:16]} 27. Kc2 {[%clk 0:34:20][%emt 0:00:52]} 27... Bxg4
{[%clk 0:49:17][%emt 0:00:57]} 28. hxg4 {[%clk 0:34:45][%emt 0:00:06]} 28...
h6 {[%clk 0:49:13][%emt 0:00:34]} 29. Rae1+ {[%clk 0:34:54][%emt 0:00:21]}
29... Kd8 {[%clk 0:49:04][%emt 0:00:39]} 1/2-1/2

[White "PICARD, Martin"]
[Black "LABARBE, Gabriel"]
[WhiteElo "1505"]
[BlackElo "1731"]
[Result "0-1"]
[Date "2026.03.08"]

[Event "Chpt Reg Jeunes Occitanie 2026 - Espalion"]
[Site "Espalion, France"]
[Round "9.18"]
[ECO "?"]
[Annotator "?"]
[TimeControl "1h30 + 30sec/cp"]

1. d4 {[%clk 1:30:58][%emt 0:00:02]} 1... Nf6 {[%clk 1:30:55][%emt 0:00:05]}
2. c4 {[%clk 1:31:19][%emt 0:00:09]} 2... c5 {[%clk 1:31:19][%emt 0:00:06]} 3.
d5 {[%clk 1:31:46][%emt 0:00:04]} 3... e6 {[%clk 1:31:42][%emt 0:00:07]} 4.
Nc3 {[%clk 1:32:12][%emt 0:00:03]} 4... exd5 {[%clk 1:32:06][%emt 0:00:06]} 5.
cxd5 {[%clk 1:32:34][%emt 0:00:08]} 5... d6 {[%clk 1:32:27][%emt 0:00:10]} 6.
e4 {[%clk 1:32:57][%emt 0:00:06]} 6... g6 {[%clk 1:32:48][%emt 0:00:09]} 7.
Nf3 {[%clk 1:33:10][%emt 0:00:17]} 7... a6 {[%clk 1:33:10][%emt 0:00:08]} 8.
a4 {[%clk 1:33:29][%emt 0:00:11]} 8... Bg4 {[%clk 1:33:25][%emt 0:00:16]} 9.
Be2 {[%clk 1:32:19][%emt 0:01:39]} 9... Bg7 {[%clk 1:33:11][%emt 0:00:44]} 10.
Bf4 {[%clk 1:30:44][%emt 0:02:05]} 10... O-O {[%clk 1:31:53][%emt 0:01:48]}
11. O-O {[%clk 1:30:29][%emt 0:00:45]} 11... Bxf3 {[%clk 1:31:42][%emt
0:00:41]} 12. Bxf3 {[%clk 1:30:40][%emt 0:00:19]} 12... Qe7 {[%clk
1:29:30][%emt 0:02:42]} 13. Re1 {[%clk 1:25:40][%emt 0:05:30]} 13... Nbd7
{[%clk 1:29:31][%emt 0:00:29]} 14. Rc1 {[%clk 1:23:09][%emt 0:03:01]} 14...
Rfe8 {[%clk 1:29:05][%emt 0:00:56]} 15. Qd2 {[%clk 1:20:53][%emt 0:02:46]}
15... Rab8 {[%clk 1:28:39][%emt 0:00:56]} 16. a5 {[%clk 1:19:06][%emt 0:02:17]}
 16... Ne5 {[%clk 1:26:32][%emt 0:02:37]} 17. Qe2 {[%clk 1:15:18][%emt
0:04:17]} 17... b5 {[%clk 1:25:10][%emt 0:01:53]} 18. axb6 {[%clk
1:11:26][%emt 0:04:23]} 18... Rxb6 {[%clk 1:24:01][%emt 0:01:38]} 19. Rc2
{[%clk 1:11:01][%emt 0:00:54]} 19... Nfd7 {[%clk 1:21:24][%emt 0:03:08]} 20.
Bxe5 {[%clk 1:01:52][%emt 0:09:40]} 20... Nxe5 {[%clk 1:21:43][%emt 0:00:11]}
21. Rec1 {[%clk 0:50:10][%emt 0:12:11]} 21... Qg5 {[%clk 1:21:06][%emt
0:01:07]} 22. g3 {[%clk 0:47:48][%emt 0:02:52]} 22... Rxb2 {[%clk
1:20:15][%emt 0:01:21]} 23. Bg2 {[%clk 0:41:38][%emt 0:06:40]} 23... Qxc1+
{[%clk 1:19:29][%emt 0:01:15]} 24. Rxc1 {[%clk 0:42:03][%emt 0:00:06]} 24...
Rxe2 {[%clk 1:19:53][%emt 0:00:06]} 25. Nxe2 {[%clk 0:42:28][%emt 0:00:04]}
25... Nd3 {[%clk 1:18:26][%emt 0:01:58]} 26. Rc2 {[%clk 0:40:14][%emt 0:02:45]}
 26... a5 {[%clk 1:17:51][%emt 0:01:05]} 27. Ra2 {[%clk 0:39:46][%emt 0:00:57]}
 27... Ra8 {[%clk 1:18:09][%emt 0:00:12]} 28. Ra3 {[%clk 0:39:45][%emt
0:00:32]} 28... c4 {[%clk 1:17:56][%emt 0:00:42]} 29. Bf1 {[%clk 0:40:02][%emt
0:00:12]} 29... a4 {[%clk 1:17:39][%emt 0:00:48]} 30. f4 {[%clk 0:35:34][%emt
0:04:57]} 30... Bb2 {[%clk 1:15:47][%emt 0:02:22]} 31. Ra2 {[%clk
0:33:16][%emt 0:02:50]} 31... c3 {[%clk 1:15:50][%emt 0:00:27]} 32. Nxc3
{[%clk 0:33:02][%emt 0:00:43]} 32... Bxc3 {[%clk 1:15:13][%emt 0:01:07]} 33.
Bxd3 {[%clk 0:32:43][%emt 0:00:49]} 33... a3 {[%clk 1:15:18][%emt 0:00:25]}
34. Bb5 {[%clk 0:29:27][%emt 0:03:46]} 34... Rb8 {[%clk 1:14:22][%emt 0:01:25]}
 35. Bc6 {[%clk 0:29:05][%emt 0:00:53]} 35... Rb1+ {[%clk 1:14:43][%emt
0:00:09]} 0-1

[White "DUBUC SAFFRE, Felix"]
[Black "AMRANE, Samy-Islam"]
[WhiteElo "1616"]
[BlackElo "1809"]
[Result "1/2-1/2"]
[Date "2026.03.08"]